bitfinex/quotes_SOLUSD_20241102
["timestamp","ask_amount","ask_price","bid_price","bid_amount"]
[1730524599910,21.2256,166.31,166.27,8.74123403]
[1730524600378,15.2126,166.31,166.27,8.74123403]
[1730524600578,14.75333403,166.34,166.29,8.74123403]
[1730524602284,6.0121,166.34,166.29,14.75463403]
[1730524602787,6.0121,166.34,166.3,8.74123403]
[1730524602993,25.14093403,166.35,166.3,8.74123403]
[1730524603194,16.3997,166.35,166.31,8.74123403]
[1730524603406,16.3997,166.35,166.32,6.0125]
[1730524605310,6.0111,166.36,166.32,6.0125]
[1730524605989,20.95213403,166.37,166.32,4.5125]
[1730524606193,6.2002,166.37,166.33,8.74123403]
[1730524606599,8.74123403,166.38,166.33,8.74123403]
[1730524607413,14.75163403,166.38,166.33,8.74123403]
[1730524607802,6.0104,166.38,166.34,8.74123403]
[1730524608002,31.15083403,166.39,166.34,8.74123403]
[1730524608205,22.4096,166.39,166.35,8.74123403]
[1730524608713,8.74123403,166.38,166.33,29.78353403]
[1730524608917,8.74123403,166.38,166.33,21.0423]
[1730524609523,14.75173403,166.38,166.33,21.0423]
[1730524610106,14.75173403,166.38,166.33,29.78353403]
[1730524612029,6.0105,166.38,166.33,29.78353403]
[1730524612318,6.0105,166.38,166.34,8.74123403]
[1730524613292,6.0105,166.38,166.33,29.78333403]
[1730524614514,8.74123403,166.37,166.32,6.0124]
[1730524615499,8.74123403,166.37,166.32,14.75363403]
[1730524616091,8.74123403,166.36,166.31,14.75393403]
[1730524616291,6.0105,166.38,166.32,29.914574]
[1730524616292,8.74123403,166.37,166.32,29.914574]
[1730524616530,14.75173403,166.38,166.32,38.65580803]
[1730524618520,14.75203403,166.37,166.32,38.65580803]
[1730524618814,8.74123403,166.35,166.31,15.0321]
[1730524619822,8.74123403,166.33,166.28,6.28133842]
[1730524620003,8.74123403,166.32,166.28,6.28133842]
[1730524620623,8.74123403,166.3,166.25,0.90221539]
[1730524621321,8.74123403,166.29,166.25,0.90221539]
[1730524621695,14.75493403,166.29,166.25,0.90221539]
[1730524622201,8.74123403,166.31,166.26,8.74123403]
[1730524623223,14.75433403,166.31,166.26,8.74123403]
[1730524627325,8.74123403,166.29,166.24,23.77943403]
[1730524628430,14.75483403,166.29,166.24,29.79473403]
[1730524629821,14.75483403,166.29,166.23,6.28393154]
[1730524629822,8.74123403,166.27,166.23,6.28393154]
[1730524630027,8.74123403,166.26,166.21,8.74123403]
[1730524630328,8.74123403,166.26,166.21,14.75753403]
[1730524630524,8.74123403,166.27,166.21,14.75753403]
[1730524631020,8.74123403,166.26,166.21,8.74123403]
[1730524631220,8.74123403,166.26,166.2,36.08482247]
[1730524632230,14.75613403,166.26,166.21,8.74123403]
[1730524632420,6.0149,166.26,166.21,8.74123403]
[1730524633334,15.4875,166.27,166.23,8.74123403]
[1730524633631,6.0132,166.3,166.26,8.74123403]
[1730524638917,6.0132,166.3,166.26,14.75573403]
[1730524645022,21.5004,166.31,166.27,8.74123403]
[1730524645222,6.0129,166.31,166.27,8.74123403]
[1730524652120,6.3646,166.32,166.28,8.74123403]
[1730524652324,6.0121,166.33,166.29,8.74123403]
[1730524653256,6.0117,166.34,166.3,8.74123403]
[1730524653829,6.0117,166.34,166.29,8.74123403]
[1730524657752,6.0117,166.34,166.3,8.74123403]
[1730524662955,6.0117,166.34,166.29,14.75473403]
[1730524663458,8.74123403,166.33,166.28,8.86672403]
[1730524663636,8.74123403,166.31,166.26,14.75563403]
[1730524663831,8.74123403,166.32,166.27,8.74123403]
[1730524664238,8.74123403,166.33,166.27,8.74123403]
[1730524665263,6.0125,166.32,166.27,8.74123403]
[1730524665558,14.75373403,166.32,166.27,8.74123403]
[1730524666058,6.0125,166.32,166.27,8.74123403]
[1730524667469,8.74123403,166.32,166.27,8.74123403]
[1730524668756,6.0128,166.31,166.27,8.74123403]
[1730524670447,6.0128,166.31,166.28,8.74123403]
[1730524671539,6.0125,166.32,166.28,8.74123403]
[1730524679774,25.34953403,166.35,166.29,32.89458803]
[1730524679955,22.6198,166.35,166.31,8.74123403]
[1730524684074,22.6198,166.35,166.32,8.74123403]
[1730524687168,6.0115,166.35,166.32,8.74123403]
[1730524689390,6.0115,166.35,166.31,8.74123403]
[1730524690269,14.75273403,166.35,166.3,8.74123403]
[1730524690473,8.74123403,166.33,166.29,0.12549]
[1730524690785,8.74123403,166.33,166.29,24.027864]
[1730524690962,8.74123403,166.34,166.29,32.76909803]
[1730524692402,6.0121,166.33,166.29,32.76909803]
[1730524694300,14.75263403,166.35,166.3,8.74123403]
[1730524696400,6.0114,166.35,166.32,8.74123403]
[1730524699409,6.0114,166.35,166.31,32.64360803]
[1730524704482,6.0114,166.35,166.32,8.74123403]
[1730524706199,8.74123403,166.37,166.32,8.74123403]
[1730524706402,6.011,166.36,166.32,8.74123403]
[1730524711691,14.75153403,166.38,166.32,8.74123403]
[1730524716105,8.74123403,166.37,166.31,32.64360803]
[1730524717003,6.011,166.36,166.31,32.64360803]
[1730524718410,6.011,166.36,166.32,8.74123403]
[1730524719495,8.74123403,166.37,166.32,8.74123403]
[1730524721393,6.011,166.36,166.32,8.74123403]
[1730524734221,8.74123403,166.38,166.32,8.74123403]
[1730524734419,6.0106,166.37,166.32,8.74123403]
[1730524735305,14.75183403,166.37,166.32,8.74123403]
[1730524742730,14.75183403,166.37,166.33,8.74123403]
[1730524742930,14.75183403,166.37,166.32,8.74123403]
[1730524746410,6.0106,166.37,166.33,23.776884]
[1730524746606,6.0106,166.37,166.33,32.51811803]
[1730524747207,6.0106,166.37,166.34,8.74123403]
[1730524748534,24.04703403,166.39,166.34,8.74123403]
[1730524748715,6.0103,166.38,166.34,8.74123403]
[1730524749531,6.0103,166.38,166.35,32.51811803]
[1730524749834,21.3158,166.39,166.35,32.51811803]
[1730524750132,21.3159,166.39,166.35,32.51811803]
[1730524752239,6.0101,166.39,166.35,32.51811803]
[1730524752415,6.0101,166.39,166.36,8.74123403]
[1730524752937,6.0096,166.4,166.36,8.74123403]
[1730524753247,6.0092,166.41,166.37,8.74123403]
[1730524753420,6.0092,166.41,166.38,8.74123403]
[1730524753619,25.15363403,166.43,166.37,8.74123403]
[1730524753820,6.0088,166.42,166.37,8.74123403]
[1730524755230,6.0088,166.42,166.38,32.51811803]
[1730524755549,6.0088,166.42,166.39,8.74123403]
[1730524756717,16.4124,166.43,166.39,14.75103403]
[1730524756718,22.421,166.43,166.39,14.75103403]
[1730524757937,31.16223403,166.43,166.38,32.51811803]
[1730524758825,22.421,166.43,166.39,8.74123403]
[1730524762949,14.75013403,166.42,166.38,29.786984]
[1730524764348,14.75013403,166.42,166.37,8.74123403]
[1730524768057,6.0089,166.42,166.38,8.74123403]
[1730524768243,14.75013403,166.42,166.38,8.74123403]
[1730524770782,14.75053403,166.41,166.37,23.776884]
[1730524770975,6.0093,166.41,166.37,32.51811803]
[1730524772657,25.15363403,166.43,166.37,32.51811803]
[1730524772974,6.0088,166.42,166.37,32.51811803]
[1730524776969,14.75003403,166.42,166.37,32.51811803]
[1730524779361,8.74123403,166.44,166.4,0.25098]
[1730524779572,8.74123403,166.45,166.41,23.776884]
[1730524781049,6.0074,166.46,166.41,32.51811803]
[1730524781050,8.74123403,166.46,166.41,32.51811803]
[1730524781254,14.74903403,166.45,166.41,23.776884]
[1730524785681,14.74873403,166.46,166.41,38.52721803]
[1730524786343,8.74123403,166.45,166.41,29.785984]
[1730524786762,14.74873403,166.46,166.41,23.776884]
[1730524789269,14.74873403,166.46,166.41,32.51811803]
[1730524792451,6.0075,166.46,166.41,32.51811803]
[1730524797774,6.0075,166.46,166.41,38.52731803]
[1730524799501,30.70933403,166.47,166.43,8.74123403]
[1730524799502,21.9681,166.47,166.43,8.74123403]
[1730524799780,15.6926,166.47,166.43,8.74123403]
[1730524800781,15.6926,166.47,166.43,14.74963403]
[1730524801391,0.6136664,166.48,166.44,32.76909803]
[1730524801780,0.6136664,166.48,166.46,8.74123403]
[1730524802564,0.6136664,166.48,166.43,51.0723]
[1730524802565,15.36170043,166.48,166.43,8.74123403]
[1730524802880,8.74123403,166.47,166.43,23.776884]
[1730524803378,15.36170043,166.48,166.43,23.776884]
[1730524805289,15.36170043,166.48,166.43,29.785384]
[1730524805967,15.36170043,166.48,166.43,38.52661803]
[1730524806976,15.36170043,166.48,166.43,14.74973403]
[1730524806977,6.6204664,166.48,166.43,14.74973403]
[1730524807970,0.6136664,166.48,166.44,32.51811803]
[1730524808387,0.6136664,166.48,166.45,8.74123403]
[1730524809990,0.6136664,166.48,166.45,14.74883403]
[1730524810192,0.6136664,166.48,166.47,8.74123403]
[1730524810390,0.6136664,166.48,166.47,32.51811803]
[1730524811279,0.6136664,166.48,166.47,38.77609803]
[1730524812182,0.6136664,166.48,166.47,23.776884]
[1730524813106,0.6136664,166.48,166.46,14.74863403]
[1730524813399,0.6136664,166.48,166.45,15.0195]
[1730524814598,15.36160043,166.48,166.44,23.776884]
[1730524816977,15.36160043,166.48,166.44,29.784884]
[1730524817781,6.6203664,166.48,166.44,29.784884]
[1730524819104,0.6136664,166.48,166.44,38.52611803]
[1730524822404,0.6136664,166.48,166.44,29.784884]
[1730524825912,0.6136664,166.48,166.44,38.52611803]
[1730524831723,0.6136664,166.48,166.45,8.99221403]
[1730524831926,0.6136664,166.48,166.47,8.74123403]
[1730524833525,0.6136664,166.48,166.47,32.51811803]
[1730524835932,0.6136664,166.48,166.47,32.89458803]
[1730524843746,0.6136664,166.48,166.47,52.89458803]
[1730524844738,0.6136664,166.48,166.47,87.85952415]
[1730524844939,0.6136664,166.48,166.47,87.95952415]
[1730524847523,0.6136664,166.48,166.47,88.05952415]
[1730524848434,27.3309,166.58,166.48,44.253354]
[1730524848639,27.3309,166.58,166.54,8.74123403]
[1730524849139,36.07213403,166.58,166.54,23.776884]
[1730524851126,21.3276,166.58,166.54,32.51811803]
[1730524851343,30.06883403,166.58,166.54,32.51811803]
[1730524851534,36.07203403,166.58,166.54,32.51811803]
[1730524851845,27.3308,166.58,166.54,32.51811803]
[1730524852232,21.3276,166.58,166.55,8.74123403]
[1730524853120,15.2833,166.58,166.56,8.74123403]
[1730524854028,15.2833,166.58,166.54,8.74123403]
[1730524854230,30.02763403,166.58,166.54,23.776884]
[1730524862759,21.2864,166.58,166.54,23.776884]
[1730524864348,21.2864,166.58,166.54,32.51811803]
[1730524868765,15.2833,166.58,166.55,8.74123403]
[1730524868966,8.74123403,166.61,166.56,8.74123403]
[1730524869149,6.0024,166.6,166.56,8.74123403]
[1730524872244,8.74123403,166.61,166.56,8.74123403]
[1730524872446,14.74323403,166.61,166.56,8.74123403]
[1730524873445,22.3904,166.62,166.57,8.99221403]
[1730524873670,28.3921,166.62,166.58,8.74123403]
[1730524874858,37.13333403,166.62,166.58,23.776884]
[1730524875170,8.74123403,166.61,166.56,15.0091]
[1730524875352,8.74123403,166.59,166.56,15.0091]
[1730524875541,8.74123403,166.6,166.56,15.0091]
[1730524876347,8.74123403,166.61,166.56,15.0091]
[1730524876547,8.74123403,166.6,166.56,15.0091]
[1730524877160,8.74123403,166.59,166.55,23.776884]
[1730524879287,14.74393403,166.59,166.55,23.776884]
[1730524882764,6.0027,166.59,166.55,23.776884]
[1730524886791,8.74123403,166.58,166.53,6.27286356]
[1730524886973,6.0027,166.59,166.53,6.27286356]
[1730524886974,8.74123403,166.57,166.53,6.27286356]
[1730524888182,8.74123403,166.56,166.53,6.27286356]
[1730524888386,8.74123403,166.56,166.51,8.74123403]
[1730524888552,8.74123403,166.56,166.52,23.776884]
[1730524889072,37.67193403,166.57,166.52,23.776884]
[1730524889278,16.4292,166.57,166.54,8.74123403]
[1730524889485,16.4292,166.57,166.53,8.74123403]
[1730524890677,22.4327,166.57,166.53,8.74123403]
[1730524891258,22.4327,166.57,166.53,23.776884]
[1730524892580,8.74123403,166.56,166.51,8.74123403]
[1730524892878,8.74123403,166.56,166.52,23.776884]
[1730524894956,8.74123403,166.56,166.52,29.782084]
[1730524895170,8.74123403,166.56,166.52,44.795284]
[1730524900082,14.74503403,166.56,166.52,44.795284]
[1730524901189,14.74503403,166.56,166.5,15.0151996]
[1730524901366,14.74503403,166.56,166.5,6.27396557]
[1730524901367,8.74123403,166.53,166.5,6.27396557]
[1730524902497,8.74123403,166.52,166.5,6.27396557]
[1730524903591,14.74663403,166.52,166.5,6.27396557]
[1730524904487,8.74123403,166.53,166.5,6.27396557]
[1730524905279,8.74123403,166.53,166.47,8.74123403]
[1730524905689,8.74123403,166.53,166.47,15.01673205]
[1730524906189,8.74123403,166.53,166.48,23.776884]
[1730524906601,14.74613403,166.53,166.48,32.51811803]
[1730524909875,14.74543403,166.55,166.49,8.74123403]
[1730524913183,14.74583403,166.54,166.48,32.51811803]
[1730524915104,8.74123403,166.52,166.48,23.776884]
[1730524919700,8.74123403,166.52,166.47,15.01673205]
[1730524919883,8.74123403,166.5,166.47,6.27549802]
[1730524920085,6.0042,166.55,166.45,8.74123403]
[1730524920086,8.74123403,166.49,166.45,23.902374]
[1730524920291,8.74123403,166.49,166.44,23.776884]
[1730524920498,8.74123403,166.47,166.43,6.2764261]
[1730524921883,8.74123403,166.48,166.43,15.01766013]
[1730524922788,8.74123403,166.49,166.43,15.01766013]
[1730524922990,14.74773403,166.49,166.43,15.01766013]
[1730524925978,8.74123403,166.48,166.43,15.01766013]
[1730524926382,8.74123403,166.48,166.43,6.2764261]
[1730524926819,6.006,166.5,166.45,8.74123403]
[1730524929504,14.74723403,166.5,166.45,8.74123403]
[1730524931698,8.74123403,166.49,166.44,32.51811803]
[1730524933113,14.74723403,166.5,166.45,8.74123403]
[1730524936032,14.74723403,166.5,166.44,32.51811803]
[1730524939418,8.74123403,166.49,166.44,32.51811803]
[1730524943109,14.74783403,166.49,166.44,23.776884]
[1730524945127,8.74123403,166.48,166.44,23.776884]
[1730524947236,8.74123403,166.48,166.43,6.2764261]
[1730524947440,14.74813403,166.48,166.43,6.2764261]
[1730524947634,14.74813403,166.48,166.43,15.01766013]
[1730524947841,8.74123403,166.49,166.44,32.51811803]
[1730524949034,14.74763403,166.49,166.44,32.51811803]
[1730524955554,6.6639,166.51,166.43,6.2764261]
[1730524955555,8.74123403,166.47,166.43,6.2764261]
[1730524957556,6.007,166.47,166.43,6.2764261]
[1730524965446,8.74123403,166.49,166.43,15.01766013]
[1730524966545,14.74783403,166.49,166.43,15.01766013]
[1730524968371,14.74783403,166.49,166.44,8.74123403]
[1730524972679,14.74783403,166.49,166.44,14.74903403]
[1730524982426,14.74783403,166.49,166.44,6.0078]
[1730524985398,6.6639,166.51,166.43,21.2977261]
[1730524985399,8.74123403,166.47,166.43,21.2977261]
[1730524986686,8.74123403,166.47,166.43,6.2764261]
[1730524986687,8.74123403,166.46,166.43,6.2764261]
[1730524986884,8.74123403,166.45,166.41,23.776884]
[1730524987403,14.74923403,166.45,166.4,6.26592669]
[1730524987611,8.74123403,166.44,166.4,6.26592669]
[1730524988106,8.74123403,166.42,166.4,6.26592669]
[1730524988279,8.74123403,166.42,166.37,15.0266]
[1730524988482,8.74123403,166.42,166.37,30.03094267]
[1730524989287,14.75013403,166.42,166.37,36.04154267]
[1730524989821,8.74123403,166.41,166.37,27.30030864]
[1730524990183,8.74123403,166.4,166.35,14.75233403]
[1730524990803,8.74123403,166.4,166.35,8.74123403]
[1730524991383,31.15873403,166.41,166.36,8.74123403]
[1730524993580,8.74123403,166.37,166.34,6.26218415]
[1730524993784,8.74123403,166.35,166.26,8.74123403]
[1730524993985,8.74123403,166.31,166.28,6.26590208]
[1730524995794,14.75333403,166.33,166.28,6.26590208]
[1730524996012,8.74123403,166.32,166.28,6.26590208]
[1730524996199,14.75293403,166.34,166.28,15.00713611]
[1730524996597,8.74123403,166.34,166.29,21.0467]
[1730524998409,8.74123403,166.33,166.29,21.0467]
[1730524998609,22.4194,166.35,166.29,21.0467]
[1730524998610,8.74123403,166.32,166.29,15.0332]
[1730524999017,8.74123403,166.34,166.3,23.776884]
[1730525000627,8.74123403,166.34,166.3,29.789984]
[1730525003005,14.75323403,166.34,166.29,15.0332]
[1730525003200,8.74123403,166.33,166.28,6.26590208]
[1730525003407,8.74123403,166.32,166.28,6.26590208]
[1730525003623,8.74123403,166.31,166.28,6.26590208]
[1730525004299,14.75433403,166.31,166.28,6.26590208]
[1730525006306,8.74123403,166.31,166.28,6.26590208]
[1730525006504,8.74123403,166.32,166.28,6.26590208]
[1730525007625,14.75403403,166.32,166.28,6.26590208]
[1730525007832,8.74123403,166.32,166.29,0.12549]
[1730525008016,16.408,166.35,166.31,8.74123403]
[1730525008822,22.4194,166.35,166.31,8.74123403]
[1730525009229,22.4194,166.35,166.3,8.74123403]
[1730525009614,22.4194,166.35,166.3,14.75423403]
[1730525010739,16.408,166.35,166.3,29.78723403]
[1730525011245,16.408,166.35,166.31,8.74123403]
[1730525011537,22.4194,166.35,166.31,8.74123403]
[1730525014131,8.74123403,166.33,166.29,24.027864]
[1730525014747,22.4194,166.35,166.29,30.041264]
[1730525014748,8.74123403,166.34,166.29,30.041264]
[1730525015436,25.14923403,166.35,166.3,8.74123403]
[1730525016144,8.74123403,166.34,166.29,44.824184]
[1730525016834,8.74123403,166.34,166.29,38.810784]
[1730525018344,14.75333403,166.34,166.29,38.810784]
[1730525021454,14.75333403,166.34,166.29,47.55201803]
[1730525022335,14.75333403,166.34,166.29,8.74123403]
[1730525022526,8.74123403,166.33,166.28,21.01372814]
[1730525023424,14.75293403,166.34,166.29,8.74123403]
[1730525025439,14.75183403,166.37,166.32,8.74123403]
[1730525025651,20.0,166.36,166.32,8.74123403]
[1730525025832,28.74123403,166.36,166.31,8.74123403]
[1730525026522,28.74123403,166.36,166.3,32.51811803]
[1730525027441,6.0114,166.35,166.3,32.51811803]
[1730525028328,14.75263403,166.35,166.3,32.51811803]
[1730525029349,6.0114,166.35,166.3,32.51811803]
[1730525031940,6.0114,166.35,166.31,8.74123403]
[1730525032451,14.75263403,166.35,166.3,23.776884]
[1730525041453,6.0114,166.35,166.3,38.53121803]
[1730525042046,14.75263403,166.35,166.3,38.53121803]
[1730525042254,14.75263403,166.35,166.3,23.776884]
[1730525043758,14.75263403,166.35,166.3,32.51811803]
[1730525046754,6.0114,166.35,166.3,32.51811803]
[1730525049068,14.75263403,166.35,166.3,32.51811803]
[1730525055250,6.0114,166.35,166.31,8.74123403]
[1730525055650,6.0114,166.35,166.3,32.51811803]
[1730525056769,8.74123403,166.35,166.3,32.51811803]
[1730525057858,6.0117,166.34,166.3,32.51811803]
[1730525064282,8.74123403,166.36,166.3,32.51811803]
[1730525065055,8.74123403,166.35,166.3,32.51811803]
[1730525067357,6.0117,166.34,166.3,32.51811803]
[1730525069485,6.0114,166.35,166.3,32.51811803]
[1730525079394,6.0114,166.35,166.3,38.53111803]
[1730525079801,14.75183403,166.37,166.3,38.53111803]
[1730525082421,6.0104,166.38,166.34,8.74123403]
[1730525082703,6.0104,166.38,166.35,8.74123403]
[1730525083414,21.7585,166.39,166.35,8.74123403]
[1730525083588,21.7585,166.39,166.36,8.74123403]
[1730525084501,21.7585,166.39,166.34,6.0116]
[1730525084502,21.7585,166.39,166.35,8.74123403]
[1730525085889,6.0096,166.4,166.37,8.74123403]
[1730525086905,6.0092,166.41,166.37,8.74123403]
[1730525087412,22.6166,166.43,166.39,8.74123403]
[1730525087797,6.0087,166.43,166.39,8.74123403]
[1730525090898,14.74903403,166.45,166.4,8.74123403]
[1730525094989,6.0078,166.45,166.41,8.74123403]
[1730525096718,6.0078,166.45,166.39,6.0098]
[1730525096719,14.74903403,166.45,166.4,32.51811803]
[1730525097227,8.74123403,166.51,166.44,8.74123403]
[1730525097515,6.0052,166.52,166.46,8.74123403]
[1730525097516,14.74643403,166.52,166.46,8.74123403]
[1730525097901,8.74123403,166.51,166.46,8.74123403]
[1730525098091,8.74123403,166.51,166.45,8.74123403]
[1730525098295,8.74123403,166.5,166.45,8.74123403]
[1730525098592,6.0063,166.49,166.45,8.74123403]
[1730525099219,6.0063,166.49,166.44,8.74123403]
[1730525099524,8.74123403,166.48,166.43,32.64360803]
[1730525101900,14.74803403,166.48,166.43,38.65210803]
[1730525102900,8.74123403,166.49,166.43,38.65210803]
[1730525104406,8.74123403,166.49,166.44,8.74123403]
[1730525104609,6.0067,166.48,166.44,8.74123403]
[1730525112216,14.74793403,166.48,166.43,32.51811803]
[1730525117735,14.74793403,166.48,166.43,38.52651803]
[1730525123840,8.74123403,166.49,166.44,8.74123403]
[1730525125243,6.0067,166.48,166.44,8.74123403]
[1730525126438,6.0063,166.49,166.44,8.74123403]
[1730525127737,6.0063,166.49,166.45,8.74123403]
[1730525130133,8.74123403,166.51,166.45,8.24123403]
[1730525130435,14.74643403,166.52,166.47,23.776884]
[1730525130640,6.0052,166.52,166.47,32.51811803]
[1730525130831,14.74643403,166.52,166.47,23.776884]
[1730525132526,14.74643403,166.52,166.47,32.51811803]
[1730525133643,25.34913403,166.53,166.47,32.51811803]
[1730525133826,31.35403403,166.53,166.47,53.54271803]
[1730525134025,31.35403403,166.53,166.48,8.74123403]
[1730525134340,31.35403403,166.53,166.47,44.801484]
[1730525134341,31.35403403,166.53,166.47,53.54271803]
[1730525141130,31.35403403,166.53,166.48,8.74123403]
[1730525143554,6.0049,166.53,166.5,8.74123403]
[1730525143853,6.0305,166.54,166.5,8.74123403]
[1730525144035,15.3348,166.57,166.51,8.74123403]
[1730525144036,6.0038,166.56,166.51,8.74123403]
[1730525144225,6.0038,166.56,166.52,8.74123403]
[1730525144948,6.0038,166.56,166.53,8.74123403]
[1730525146749,6.0035,166.57,166.53,8.74123403]
[1730525147242,15.3348,166.61,166.55,8.74123403]
[1730525147243,6.0028,166.59,166.55,8.74123403]
[1730525148055,6.0026,166.6,166.57,8.74123403]
[1730525149335,14.74383403,166.6,166.55,8.74123403]
[1730525149531,8.74123403,166.58,166.53,8.74123403]
[1730525150844,8.74123403,166.57,166.52,8.74123403]
[1730525152064,14.74503403,166.57,166.52,8.74123403]
[1730525159978,6.0038,166.57,166.53,8.74123403]
[1730525160846,6.0031,166.58,166.53,8.74123403]
[1730525163062,6.0031,166.58,166.54,8.74123403]
[1730525167254,6.0031,166.58,166.53,8.74123403]
[1730525168178,8.74123403,166.58,166.53,8.74123403]
[1730525169483,6.0034,166.57,166.53,8.74123403]
[1730525170375,8.74123403,166.55,166.51,15.0138]
[1730525171957,14.74563403,166.55,166.51,15.0138]
[1730525172854,6.0044,166.55,166.51,15.0138]
[1730525173061,6.0044,166.55,166.51,23.75503403]
[1730525173761,6.0044,166.55,166.52,8.74123403]
[1730525179083,6.0044,166.55,166.51,23.75503403]
[1730525182580,6.0044,166.55,166.52,8.74123403]
[1730525184385,16.6238,166.56,166.52,8.74123403]
[1730525184587,22.6277,166.56,166.52,8.74123403]
[1730525190376,6.0039,166.56,166.53,8.74123403]
[1730525190692,6.0033,166.58,166.54,8.74123403]
[1730525198496,8.74123403,166.57,166.51,23.75503403]
[1730525199388,6.0038,166.56,166.51,23.75503403]
[1730525199694,6.0038,166.56,166.52,8.74123403]
[1730525202801,6.0038,166.56,166.51,23.75503403]
[1730525204294,6.0038,166.56,166.52,8.74123403]
[1730525205926,6.0034,166.57,166.53,8.74123403]
[1730525208300,6.0031,166.58,166.53,8.74123403]
[1730525208504,14.74433403,166.58,166.53,8.74123403]
[1730525209211,14.74433403,166.58,166.52,8.74123403]
[1730525209493,8.74123403,166.57,166.52,8.74123403]
[1730525211002,6.0038,166.56,166.52,8.74123403]
[1730525213587,8.74123403,166.58,166.52,8.74123403]
[1730525214803,6.0034,166.57,166.52,8.74123403]
[1730525218801,8.74123403,166.55,166.51,15.0138]
[1730525220390,14.74543403,166.55,166.51,15.0138]
[1730525221607,8.74123403,166.56,166.51,15.0138]
[1730525222707,8.74123403,166.54,166.5,6.24381973]
[1730525223091,8.74123403,166.55,166.5,14.98505376]
[1730525223609,14.74573403,166.55,166.5,14.98505376]
[1730525230316,14.74573403,166.55,166.5,6.24381973]
[1730525231093,14.74573403,166.55,166.5,14.98505376]
[1730525231406,14.74503403,166.56,166.51,8.74123403]
[1730525232516,14.74503403,166.56,166.5,14.98505376]
[1730525234015,8.74123403,166.54,166.5,6.24381973]
[1730525234227,8.74123403,166.54,166.48,8.74123403]
[1730525234393,8.74123403,166.53,166.48,8.74123403]
[1730525234599,8.74123403,166.52,166.47,14.98470514]
[1730525234812,8.74123403,166.52,166.47,6.24347111]
[1730525235601,14.74653403,166.52,166.47,6.24347111]
[1730525236626,8.74123403,166.51,166.47,6.24347111]
[1730525236814,8.74123403,166.49,166.44,8.74123403]
[1730525237124,8.74123403,166.49,166.44,14.98589764]
[1730525239610,14.74773403,166.49,166.44,14.98589764]
[1730525239816,6.0065,166.49,166.45,8.74123403]
[1730525241017,6.006,166.5,166.45,8.74123403]
[1730525241632,6.0057,166.51,166.47,8.74123403]
[1730525242011,6.0057,166.51,166.48,8.74123403]
[1730525242635,26.0052,166.52,166.48,8.74123403]
[1730525242817,26.0052,166.52,166.47,8.74123403]
[1730525243236,34.74643403,166.52,166.47,8.74123403]
[1730525252931,26.0052,166.52,166.47,8.74123403]
[1730525253424,34.74643403,166.52,166.47,8.74123403]
[1730525259849,26.0052,166.52,166.47,8.74123403]
[1730525260634,34.74643403,166.52,166.47,8.74123403]
[1730525263345,8.74123403,166.51,166.45,23.76073403]
[1730525264532,6.006,166.5,166.45,23.76073403]
[1730525265733,8.74123403,166.5,166.44,14.98974636]
[1730525265930,8.74123403,166.48,166.43,14.74963403]
[1730525267232,14.74753403,166.49,166.43,14.74963403]
[1730525267434,14.74753403,166.49,166.44,8.74123403]
[1730525270059,6.0063,166.49,166.45,8.74123403]
[1730525277155,6.0063,166.49,166.44,8.74123403]
[1730525278239,14.74753403,166.49,166.44,8.74123403]
[1730525278444,14.74753403,166.49,166.43,8.74123403]
[1730525280278,8.74123403,166.48,166.42,8.74123403]
[1730525280569,8.74123403,166.48,166.41,6.24975886]
[1730525280570,8.74123403,166.48,166.43,8.74123403]
[1730525280766,14.74753403,166.49,166.43,8.74123403]
[1730525282471,14.74753403,166.49,166.44,8.74123403]
[1730525286178,14.74753403,166.49,166.43,8.74123403]
[1730525288074,6.0063,166.49,166.45,8.74123403]
[1730525288279,6.0063,166.49,166.46,8.74123403]
[1730525293573,6.0063,166.49,166.45,8.74123403]
[1730525293954,14.74753403,166.49,166.44,8.74123403]
[1730525294965,6.0063,166.49,166.45,8.74123403]
[1730525316588,6.0063,166.49,166.46,8.74123403]
[1730525325188,6.0063,166.49,166.45,8.74123403]
[1730525342703,6.0063,166.49,166.47,8.74123403]
[1730525343606,6.0063,166.49,166.46,8.74123403]
[1730525348015,6.0063,166.49,166.45,8.74123403]
[1730525353717,6.0063,166.49,166.44,8.74123403]
[1730525357126,6.0063,166.49,166.45,8.74123403]
[1730525360298,6.0063,166.49,166.46,8.74123403]
[1730525364201,6.0063,166.49,166.43,8.74123403]
[1730525364202,20.0,166.48,166.43,8.74123403]
[1730525364512,28.74123403,166.48,166.42,14.98623803]
[1730525365798,6.007,166.47,166.42,14.98623803]
[1730525366001,20.0,166.46,166.42,14.98623803]
[1730525366820,6.0078,166.45,166.42,8.74123403]
[1730525367811,6.0078,166.45,166.41,8.74123403]